[Event "*** Titled Tuesday Blitz"]
[Site "Chess.com"]
[Date "2020.05.12"]
[Round "9"]
[White "BakaPG"]
[Black "RaunakSadhwani2005"]
[Result "0-1"]
[WhiteElo "2667"]
[BlackElo "2841"]
[TimeControl "180+1"]
[EndTime "11:42:48 PDT"]
[Termination "RaunakSadhwani2005 won by resignation"]

1. e4 {[%clk 0:03:00.9]} 1... c6 {[%clk 0:03:00.1]} 2. d4 {[%clk 0:03:00]} 2...
d5 {[%clk 0:03:00.2]} 3. Nd2 {[%clk 0:03:00.5]} 3... dxe4 {[%clk 0:03:00.2]} 4.
Nxe4 {[%clk 0:03:01.1]} 4... Nf6 {[%clk 0:03:00.8]} 5. Nxf6+ {[%clk 0:03:01.1]}
5... exf6 {[%clk 0:03:01.7]} 6. c3 {[%clk 0:03:01.5]} 6... Bd6 {[%clk
0:03:01.9]} 7. Bd3 {[%clk 0:03:01.1]} 7... O-O {[%clk 0:03:02.2]} 8. Qc2 {[%clk
0:03:01.2]} 8... Re8+ {[%clk 0:03:02.5]} 9. Ne2 {[%clk 0:03:01.8]} 9... h5
{[%clk 0:03:03.2]} 10. Bd2 {[%clk 0:03:02.4]} 10... Nd7 {[%clk 0:03:00.4]} 11.
O-O-O {[%clk 0:03:02.1]} 11... h4 {[%clk 0:02:59.9]} 12. g3 {[%clk 0:02:59.1]}
12... h3 {[%clk 0:02:57.4]} 13. Nf4 {[%clk 0:02:51.1]} 13... Nf8 {[%clk
0:02:55.5]} 14. Rhe1 {[%clk 0:02:50.5]} 14... Ne6 {[%clk 0:02:25.1]} 15. Bc4
{[%clk 0:02:05.8]} 15... Nxf4 {[%clk 0:02:05.1]} 16. gxf4 {[%clk 0:02:04.9]}
16... Rxe1 {[%clk 0:01:31.3]} 17. Rxe1 {[%clk 0:02:03.5]} 17... f5 {[%clk
0:01:31.2]} 18. Qd3 {[%clk 0:01:58.8]} 18... b5 {[%clk 0:01:28.6]} 19. Bb3
{[%clk 0:01:57.4]} 19... a5 {[%clk 0:01:29.1]} 20. Qxh3 {[%clk 0:01:54.9]} 20...
a4 {[%clk 0:01:26.7]} 21. Bc2 {[%clk 0:01:54.7]} 21... g6 {[%clk 0:01:14.4]} 22.
Rg1 {[%clk 0:01:51.4]} 22... Qf6 {[%clk 0:01:06.5]} 23. Be3 {[%clk 0:01:47.5]}
23... Be6 {[%clk 0:00:52.3]} 24. d5 {[%clk 0:01:45.4]} 24... Bxd5 {[%clk
0:00:48.4]} 25. Bd4 {[%clk 0:01:45]} 25... Bxf4+ {[%clk 0:00:47.6]} 26. Kb1
{[%clk 0:01:41.9]} 26... Be5 {[%clk 0:00:48]} 27. Bxe5 {[%clk 0:00:53.1]} 27...
Qxe5 {[%clk 0:00:48.9]} 28. Bxf5 {[%clk 0:00:53.1]} 28... Be4+ {[%clk
0:00:48.6]} 29. Bxe4 {[%clk 0:00:52.6]} 29... Qxe4+ {[%clk 0:00:49.5]} 30. Kc1
{[%clk 0:00:48.6]} 30... a3 {[%clk 0:00:38.9]} 31. b3 {[%clk 0:00:38.8]} 31...
Qe2 {[%clk 0:00:32.4]} 32. Qd7 {[%clk 0:00:13.5]} 32... Qb2+ {[%clk 0:00:31.6]}
33. Kd1 {[%clk 0:00:13.7]} 33... Qb1+ {[%clk 0:00:28.3]} 0-1

[Event "*** Titled Tuesday Blitz"]
[Site "Chess.com"]
[Date "2020.05.12"]
[Round "9"]
[White "Dinamo81"]
[Black "WhiteCapital80"]
[Result "1-0"]
[WhiteElo "2615"]
[BlackElo "2451"]
[TimeControl "180+1"]
[EndTime "11:42:51 PDT"]
[Termination "Dinamo81 won by resignation"]

1. d4 {[%clk 0:03:00.9]} 1... e6 {[%clk 0:03:00.2]} 2. e4 {[%clk 0:02:58.3]}
2... d5 {[%clk 0:03:00.2]} 3. exd5 {[%clk 0:02:59.2]} 3... exd5 {[%clk
0:03:00.4]} 4. Nf3 {[%clk 0:02:59.8]} 4... Nf6 {[%clk 0:03:00.3]} 5. Bd3 {[%clk
0:02:58.7]} 5... Be7 {[%clk 0:03:00.3]} 6. O-O {[%clk 0:02:57.3]} 6... O-O
{[%clk 0:03:00.3]} 7. Bg5 {[%clk 0:02:54.8]} 7... Bg4 {[%clk 0:02:59.3]} 8. Nbd2
{[%clk 0:02:53.9]} 8... Nbd7 {[%clk 0:02:57.7]} 9. c3 {[%clk 0:02:53.3]} 9... c6
{[%clk 0:02:57.8]} 10. Qc2 {[%clk 0:02:52.3]} 10... Bh5 {[%clk 0:02:53]} 11. Ne5
{[%clk 0:02:50.1]} 11... Bg6 {[%clk 0:02:52.5]} 12. Nxg6 {[%clk 0:02:48.7]}
12... hxg6 {[%clk 0:02:52.4]} 13. f4 {[%clk 0:02:31.5]} 13... Ng4 {[%clk
0:02:44.3]} 14. Bxe7 {[%clk 0:02:30.6]} 14... Qxe7 {[%clk 0:02:44.3]} 15. Rae1
{[%clk 0:02:31.2]} 15... Qh4 {[%clk 0:02:26.9]} 16. Nf3 {[%clk 0:02:27.3]} 16...
Qh6 {[%clk 0:02:23.1]} 17. h3 {[%clk 0:02:01.9]} 17... Ngf6 {[%clk 0:02:17.3]}
18. Ne5 {[%clk 0:01:59.6]} 18... Rfe8 {[%clk 0:02:14.5]} 19. Re2 {[%clk
0:01:41.7]} 19... Re7 {[%clk 0:02:01.3]} 20. Ng4 {[%clk 0:01:41.6]} 20... Nxg4
{[%clk 0:01:56.7]} 21. Rxe7 {[%clk 0:01:40.8]} 21... Ngf6 {[%clk 0:01:55.6]} 22.
Qe2 {[%clk 0:01:36.7]} 22... Nf8 {[%clk 0:01:51.6]} 23. Rxb7 {[%clk 0:01:34]}
23... Ne6 {[%clk 0:01:49.4]} 24. f5 {[%clk 0:01:18]} 24... gxf5 {[%clk 0:01:42]}
25. Bxf5 {[%clk 0:01:17.1]} 25... Ng5 {[%clk 0:01:38.6]} 26. Re7 {[%clk
0:00:48.8]} 26... Rf8 {[%clk 0:01:32.9]} 27. Qe3 {[%clk 0:00:45.4]} 27... Qh5
{[%clk 0:01:17.4]} 28. Re5 {[%clk 0:00:40.5]} 28... Qh6 {[%clk 0:00:49.3]} 29.
Bd3 {[%clk 0:00:34.5]} 29... Nge4 {[%clk 0:00:46.6]} 30. Qxh6 {[%clk 0:00:33.4]}
30... gxh6 {[%clk 0:00:46.7]} 31. Bxe4 {[%clk 0:00:33.4]} 31... Nxe4 {[%clk
0:00:47]} 32. Rf3 {[%clk 0:00:25.9]} 32... Rb8 {[%clk 0:00:42]} 33. b3 {[%clk
0:00:25.9]} 33... Rd8 {[%clk 0:00:40.8]} 34. Re7 {[%clk 0:00:25]} 34... Ra8
{[%clk 0:00:37]} 35. Rfxf7 {[%clk 0:00:23.9]} 35... a5 {[%clk 0:00:34.1]} 36.
Rg7+ {[%clk 0:00:23.3]} 36... Kf8 {[%clk 0:00:33.9]} 37. Rh7 {[%clk 0:00:23.5]}
37... Kg8 {[%clk 0:00:34.1]} 38. Reg7+ {[%clk 0:00:23.3]} 38... Kf8 {[%clk
0:00:34.3]} 39. Rh8+ {[%clk 0:00:23.7]} 39... Kxg7 {[%clk 0:00:34.7]} 40. Rxa8
{[%clk 0:00:24.6]} 40... Nxc3 {[%clk 0:00:35]} 41. Rxa5 {[%clk 0:00:24.8]} 41...
Kf6 {[%clk 0:00:34.4]} 42. Rc5 {[%clk 0:00:24]} 42... Kf5 {[%clk 0:00:34.5]} 43.
Rxc3 {[%clk 0:00:23.5]} 1-0

[Event "*** Titled Tuesday Blitz"]
[Site "Chess.com"]
[Date "2020.05.12"]
[Round "9"]
[White "ehrenfeld"]
[Black "pawel83"]
[Result "1/2-1/2"]
[WhiteElo "2490"]
[BlackElo "2367"]
[TimeControl "180+1"]
[EndTime "11:42:51 PDT"]
[Termination "Game drawn - insufficient material"]

1. e4 {[%clk 0:03:00.9]} 1... e5 {[%clk 0:03:00]} 2. Nc3 {[%clk 0:03:00.3]} 2...
Nc6 {[%clk 0:02:56.8]} 3. Bc4 {[%clk 0:02:59.7]} 3... Nf6 {[%clk 0:02:50.6]} 4.
d3 {[%clk 0:02:59]} 4... Bb4 {[%clk 0:02:49]} 5. Ne2 {[%clk 0:02:58.7]} 5... d6
{[%clk 0:02:48.7]} 6. O-O {[%clk 0:02:57.3]} 6... Be6 {[%clk 0:02:46.1]} 7. Bxe6
{[%clk 0:02:54.3]} 7... fxe6 {[%clk 0:02:43.5]} 8. h3 {[%clk 0:02:33.8]} 8...
Qd7 {[%clk 0:02:41.9]} 9. f4 {[%clk 0:02:31.8]} 9... exf4 {[%clk 0:02:38.2]} 10.
Nxf4 {[%clk 0:02:30.6]} 10... O-O {[%clk 0:02:37]} 11. Bd2 {[%clk 0:02:30.4]}
11... Bxc3 {[%clk 0:02:32.2]} 12. Bxc3 {[%clk 0:02:28.9]} 12... e5 {[%clk
0:02:32.6]} 13. Nh5 {[%clk 0:02:24.8]} 13... Nxh5 {[%clk 0:02:24.9]} 14. Qxh5
{[%clk 0:02:24.5]} 14... g6 {[%clk 0:02:22.5]} 15. Qh6 {[%clk 0:02:22.3]} 15...
Qg7 {[%clk 0:02:21]} 16. Qxg7+ {[%clk 0:02:21.7]} 16... Kxg7 {[%clk 0:02:20.8]}
17. Rxf8 {[%clk 0:02:19.8]} 17... Rxf8 {[%clk 0:02:19.4]} 18. Re1 {[%clk
0:02:17.4]} 18... a5 {[%clk 0:02:14.2]} 19. a4 {[%clk 0:01:40.3]} 19... b6
{[%clk 0:02:12.8]} 20. Bd2 {[%clk 0:01:35.5]} 20... Nd4 {[%clk 0:02:10.4]} 21.
c3 {[%clk 0:01:33.8]} 21... Nb3 {[%clk 0:02:08.2]} 22. Be3 {[%clk 0:01:33.2]}
22... Rb8 {[%clk 0:02:01.4]} 23. Kf2 {[%clk 0:01:30.4]} 23... b5 {[%clk
0:01:59.3]} 24. axb5 {[%clk 0:01:30]} 24... Rxb5 {[%clk 0:01:58.7]} 25. Ke2
{[%clk 0:01:28.3]} 25... Nc5 {[%clk 0:01:55.1]} 26. Rb1 {[%clk 0:01:20.7]} 26...
Na4 {[%clk 0:01:53.8]} 27. Kd2 {[%clk 0:00:59.5]} 27... Rxb2+ {[%clk 0:01:52.5]}
28. Rxb2 {[%clk 0:00:59.1]} 28... Nxb2 {[%clk 0:01:53.1]} 29. Ba7 {[%clk
0:00:58.7]} 29... Na4 {[%clk 0:01:53.7]} 30. Bb8 {[%clk 0:00:57.2]} 30... Nc5
{[%clk 0:01:49.9]} 31. Bxc7 {[%clk 0:00:56.3]} 31... Nb7 {[%clk 0:01:49.2]} 32.
Kc2 {[%clk 0:00:53.9]} 32... Kf6 {[%clk 0:01:46.9]} 33. Kb3 {[%clk 0:00:52.5]}
33... Kg5 {[%clk 0:01:47.4]} 34. g3 {[%clk 0:00:51.6]} 34... h5 {[%clk
0:01:47.5]} 35. Ka4 {[%clk 0:00:45.1]} 35... h4 {[%clk 0:01:47.9]} 36. gxh4+
{[%clk 0:00:44]} 36... Kxh4 {[%clk 0:01:47.8]} 37. Kb5 {[%clk 0:00:43.8]} 37...
Kxh3 {[%clk 0:01:47.3]} 38. d4 {[%clk 0:00:34.6]} 38... exd4 {[%clk 0:01:44.2]}
39. cxd4 {[%clk 0:00:34.2]} 39... g5 {[%clk 0:01:44.6]} 40. e5 {[%clk
0:00:20.7]} 40... dxe5 {[%clk 0:01:42.8]} 41. dxe5 {[%clk 0:00:20.5]} 41... a4
{[%clk 0:01:36.1]} 42. e6 {[%clk 0:00:20.3]} 42... a3 {[%clk 0:01:36.1]} 43. e7
{[%clk 0:00:16.7]} 43... a2 {[%clk 0:01:35.8]} 44. e8=Q {[%clk 0:00:10.4]} 44...
a1=Q {[%clk 0:01:35.3]} 45. Qh5+ {[%clk 0:00:09.2]} 45... Kg2 {[%clk 0:01:30.6]}
46. Qxg5+ {[%clk 0:00:08.8]} 46... Kf2 {[%clk 0:01:28.9]} 47. Qf4+ {[%clk
0:00:07.8]} 47... Ke2 {[%clk 0:01:27.2]} 48. Qe4+ {[%clk 0:00:07.8]} 48... Kf2
{[%clk 0:01:19.2]} 49. Bb6+ {[%clk 0:00:07.2]} 49... Kg3 {[%clk 0:01:18.4]} 50.
Qxb7 {[%clk 0:00:06.5]} 50... Qb2+ {[%clk 0:01:15.9]} 51. Kc6 {[%clk 0:00:06.5]}
51... Qg2+ {[%clk 0:01:13.6]} 52. Kc7 {[%clk 0:00:06.7]} 52... Qxb7+ {[%clk
0:01:14.5]} 53. Kxb7 {[%clk 0:00:06.9]} 1/2-1/2

[Event "*** Titled Tuesday Blitz"]
[Site "Chess.com"]
[Date "2020.05.12"]
[Round "9"]
[White "umngqusho"]
[Black "katchesskat"]
[Result "1-0"]
[WhiteElo "2447"]
[BlackElo "2243"]
[TimeControl "180+1"]
[EndTime "11:42:52 PDT"]
[Termination "umngqusho won on time"]

1. e4 {[%clk 0:03:00.9]} 1... c5 {[%clk 0:03:00.9]} 2. Nf3 {[%clk 0:03:00.4]}
2... e6 {[%clk 0:03:01]} 3. d4 {[%clk 0:03:00.4]} 3... cxd4 {[%clk 0:03:01.9]}
4. Nxd4 {[%clk 0:03:01.2]} 4... a6 {[%clk 0:03:02.2]} 5. Nc3 {[%clk 0:03:01.3]}
5... Qc7 {[%clk 0:03:02.4]} 6. Be2 {[%clk 0:03:01]} 6... b5 {[%clk 0:03:02.2]}
7. O-O {[%clk 0:03:00.5]} 7... Bb7 {[%clk 0:03:02.5]} 8. Re1 {[%clk 0:03:00.4]}
8... Nf6 {[%clk 0:03:02.4]} 9. Bf3 {[%clk 0:02:59.8]} 9... d6 {[%clk 0:03:01.9]}
10. Nd5 {[%clk 0:02:54.3]} 10... Qd8 {[%clk 0:03:01.5]} 11. Bg5 {[%clk
0:02:51.6]} 11... Nbd7 {[%clk 0:02:59.5]} 12. a4 {[%clk 0:02:37.4]} 12... bxa4
{[%clk 0:02:47.8]} 13. c4 {[%clk 0:02:29.5]} 13... h6 {[%clk 0:02:39.5]} 14.
Bxf6 {[%clk 0:02:23.9]} 14... gxf6 {[%clk 0:02:36.8]} 15. Nxe6 {[%clk
0:02:21.7]} 15... Qc8 {[%clk 0:02:11.5]} 16. Bh5 {[%clk 0:02:00]} 16... Bxd5
{[%clk 0:01:54.9]} 17. exd5 {[%clk 0:01:56.5]} 17... Ne5 {[%clk 0:01:54.1]} 18.
f4 {[%clk 0:01:41.9]} 18... Ke7 {[%clk 0:00:27.8]} 19. Nd4 {[%clk 0:01:33.1]}
19... Qxc4 {[%clk 0:00:23.9]} 20. fxe5 {[%clk 0:01:26.2]} 20... fxe5 {[%clk
0:00:22.7]} 21. Rc1 {[%clk 0:01:22.4]} 21... Qa2 {[%clk 0:00:15.3]} 22. Qf3
{[%clk 0:00:59.7]} 22... Rh7 {[%clk 0:00:12]} 23. Rc7+ {[%clk 0:00:41.1]} 23...
Kd8 {[%clk 0:00:11.5]} 24. Rxf7 {[%clk 0:00:41.1]} 24... Rxf7 {[%clk 0:00:06.4]}
25. Qxf7 {[%clk 0:00:40.9]} 25... Be7 {[%clk 0:00:01.8]} 26. Nc6+ {[%clk
0:00:39.9]} 26... Kc7 {[%clk 0:00:01.9]} 27. Qxe7+ {[%clk 0:00:39.6]} 27... Kb6
{[%clk 0:00:02.6]} 28. Qxd6 {[%clk 0:00:39.6]} 28... Qxb2 {[%clk 0:00:01.6]} 29.
Nxe5+ {[%clk 0:00:36.7]} 29... Kb5 {[%clk 0:00:01.6]} 30. Qc6+ {[%clk
0:00:33.3]} 30... Kb4 {[%clk 0:00:02]} 31. Nd3+ {[%clk 0:00:32.7]} 1-0

[Event "*** Titled Tuesday Blitz"]
[Site "Chess.com"]
[Date "2020.05.12"]
[Round "9"]
[White "annacramling"]
[Black "Gevo1990"]
[Result "0-1"]
[WhiteElo "1866"]
[BlackElo "2595"]
[TimeControl "180+1"]
[EndTime "11:42:53 PDT"]
[Termination "Gevo1990 won by resignation"]

1. d4 {[%clk 0:03:00.9]} 1... d6 {[%clk 0:02:59.5]} 2. Nf3 {[%clk 0:02:59.6]}
2... Nf6 {[%clk 0:02:59.1]} 3. c4 {[%clk 0:02:54.7]} 3... g6 {[%clk 0:03:00]} 4.
Nc3 {[%clk 0:02:52.7]} 4... Bg7 {[%clk 0:03:00.9]} 5. e4 {[%clk 0:02:52.8]} 5...
O-O {[%clk 0:03:01.4]} 6. h3 {[%clk 0:02:52.9]} 6... e5 {[%clk 0:03:01.1]} 7. d5
{[%clk 0:02:52.2]} 7... Ne8 {[%clk 0:03:00.7]} 8. g4 {[%clk 0:02:25.1]} 8... a5
{[%clk 0:02:59.7]} 9. Be3 {[%clk 0:02:22.9]} 9... Na6 {[%clk 0:02:58.2]} 10. Nd2
{[%clk 0:02:15.7]} 10... f6 {[%clk 0:02:57.5]} 11. Be2 {[%clk 0:02:15.1]} 11...
f5 {[%clk 0:02:57.5]} 12. gxf5 {[%clk 0:02:13.2]} 12... gxf5 {[%clk 0:02:57.7]}
13. exf5 {[%clk 0:02:00]} 13... Bxf5 {[%clk 0:02:56.9]} 14. Nde4 {[%clk
0:02:00.5]} 14... Kh8 {[%clk 0:02:56.1]} 15. Qd2 {[%clk 0:01:53.6]} 15... Bxe4
{[%clk 0:02:55.3]} 16. Nxe4 {[%clk 0:01:52.8]} 16... Nf6 {[%clk 0:02:56.2]} 17.
Ng5 {[%clk 0:01:50.1]} 17... Qd7 {[%clk 0:02:38.8]} 18. Bg4 {[%clk 0:01:19.3]}
18... Qe7 {[%clk 0:02:23.9]} 19. Ne6 {[%clk 0:01:14.1]} 19... Rf7 {[%clk
0:02:23.3]} 20. O-O-O {[%clk 0:01:07.9]} 20... Ne4 {[%clk 0:02:15.8]} 21. Qe2
{[%clk 0:00:59.5]} 21... Nac5 {[%clk 0:02:15.1]} 22. Nxg7 {[%clk 0:00:51.5]}
22... Rxg7 {[%clk 0:02:12.8]} 23. Bh6 {[%clk 0:00:49.5]} 23... Rg6 {[%clk
0:02:10.1]} 24. Be3 {[%clk 0:00:44.6]} 24... Rf8 {[%clk 0:02:07.8]} 25. Rhg1
{[%clk 0:00:29.1]} 25... Qg7 {[%clk 0:02:03.2]} 26. f3 {[%clk 0:00:27.2]} 26...
Ng5 {[%clk 0:01:43.4]} 27. h4 {[%clk 0:00:20.6]} 27... Nf7 {[%clk 0:01:33.1]}
28. Bh5 {[%clk 0:00:20.2]} 28... Rxg1 {[%clk 0:01:30.3]} 29. Rxg1 {[%clk
0:00:21.1]} 29... Qf6 {[%clk 0:01:30.5]} 30. Bxc5 {[%clk 0:00:09.9]} 30... dxc5
{[%clk 0:01:29.9]} 31. Qg2 {[%clk 0:00:10.1]} 31... Nd6 {[%clk 0:01:26.8]} 32.
Qg5 {[%clk 0:00:06.5]} 32... Qxg5+ {[%clk 0:01:26]} 33. Rxg5 {[%clk 0:00:06.9]}
33... Nxc4 {[%clk 0:01:25.4]} 34. b3 {[%clk 0:00:06.3]} 34... Nd6 {[%clk
0:01:22.4]} 35. Rxe5 {[%clk 0:00:06.2]} 35... Rf5 {[%clk 0:01:22]} 36. Rxf5
{[%clk 0:00:06]} 36... Nxf5 {[%clk 0:01:22.5]} 37. Bg4 {[%clk 0:00:06]} 37...
Nd6 {[%clk 0:01:21.9]} 38. Kd2 {[%clk 0:00:05.2]} 38... Kg7 {[%clk 0:01:22.4]}
39. Ke3 {[%clk 0:00:04.9]} 39... Kf6 {[%clk 0:01:22.8]} 40. Kf4 {[%clk
0:00:05.1]} 40... b5 {[%clk 0:01:21.2]} 41. a3 {[%clk 0:00:04.8]} 41... c4
{[%clk 0:01:17.8]} 42. bxc4 {[%clk 0:00:05.1]} 42... Nxc4 {[%clk 0:01:17.9]} 43.
Ke4 {[%clk 0:00:04.6]} 43... Nxa3 {[%clk 0:01:18]} 44. Bd7 {[%clk 0:00:04.5]}
44... Nc4 {[%clk 0:01:15.5]} 45. Bxb5 {[%clk 0:00:04]} 45... Nd6+ {[%clk
0:01:15.6]} 46. Kd4 {[%clk 0:00:04.2]} 46... Nxb5+ {[%clk 0:01:16.5]} 47. Kc5
{[%clk 0:00:04.6]} 47... Nd6 {[%clk 0:01:16.6]} 48. Kc6 {[%clk 0:00:04.8]} 48...
a4 {[%clk 0:01:16.8]} 49. Kxc7 {[%clk 0:00:05.4]} 49... a3 {[%clk 0:01:17.2]}
50. Kxd6 {[%clk 0:00:05.7]} 50... a2 {[%clk 0:01:18.1]} 51. Kc7 {[%clk
0:00:06.3]} 51... a1=Q {[%clk 0:01:19]} 52. d6 {[%clk 0:00:07]} 52... Qc3+
{[%clk 0:01:18.9]} 53. Kb7 {[%clk 0:00:05.9]} 53... Ke6 {[%clk 0:01:18.5]} 54.
d7 {[%clk 0:00:06.1]} 54... Kxd7 {[%clk 0:01:19]} 0-1

[Event "*** Titled Tuesday Blitz"]
[Site "Chess.com"]
[Date "2020.05.12"]
[Round "9"]
[White "vaishali2001"]
[Black "kleopl"]
[Result "1-0"]
[WhiteElo "2637"]
[BlackElo "2407"]
[TimeControl "180+1"]
[EndTime "11:42:54 PDT"]
[Termination "vaishali2001 won by resignation"]

1. e4 {[%clk 0:03:00.9]} 1... d5 {[%clk 0:02:59.7]} 2. exd5 {[%clk 0:03:00.2]}
2... Qxd5 {[%clk 0:03:00.6]} 3. Nc3 {[%clk 0:03:00.6]} 3... Qd6 {[%clk
0:03:00.9]} 4. d4 {[%clk 0:03:00.6]} 4... Nf6 {[%clk 0:03:01.1]} 5. Bc4 {[%clk
0:03:00.7]} 5... a6 {[%clk 0:02:55.8]} 6. Nf3 {[%clk 0:02:59.8]} 6... b5 {[%clk
0:02:54.3]} 7. Bb3 {[%clk 0:02:59.7]} 7... Bb7 {[%clk 0:02:53.2]} 8. O-O {[%clk
0:03:00]} 8... e6 {[%clk 0:02:51]} 9. Re1 {[%clk 0:02:56.7]} 9... c5 {[%clk
0:02:45.9]} 10. a4 {[%clk 0:02:17.5]} 10... b4 {[%clk 0:02:32.4]} 11. Na2 {[%clk
0:01:36]} 11... a5 {[%clk 0:02:26.8]} 12. c3 {[%clk 0:01:32.7]} 12... Be7 {[%clk
0:02:13.3]} 13. Ne5 {[%clk 0:01:25.1]} 13... cxd4 {[%clk 0:02:06.3]} 14. cxd4
{[%clk 0:01:00.1]} 14... Nc6 {[%clk 0:02:00.1]} 15. Nxf7 {[%clk 0:00:40]} 15...
Kxf7 {[%clk 0:01:49.9]} 16. Rxe6 {[%clk 0:00:40.3]} 16... Qxe6 {[%clk
0:01:42.4]} 17. d5 {[%clk 0:00:32.3]} 17... Qd6 {[%clk 0:00:26.7]} 18. dxc6+
{[%clk 0:00:30.2]} 18... Kf8 {[%clk 0:00:25.5]} 19. cxb7 {[%clk 0:00:25.6]}
19... Qxd1+ {[%clk 0:00:24]} 20. Bxd1 {[%clk 0:00:26.5]} 20... Rb8 {[%clk
0:00:24.3]} 21. Bf3 {[%clk 0:00:26.3]} 21... Bd6 {[%clk 0:00:22.7]} 22. Be3
{[%clk 0:00:23.2]} 22... Ke7 {[%clk 0:00:21.6]} 23. Nc1 {[%clk 0:00:22.7]} 23...
Ke6 {[%clk 0:00:18.1]} 24. Nb3 {[%clk 0:00:22.8]} 24... Nd5 {[%clk 0:00:17.7]}
25. Nd4+ {[%clk 0:00:23]} 25... Ke5 {[%clk 0:00:17.3]} 26. Nc6+ {[%clk
0:00:21.7]} 26... Ke6 {[%clk 0:00:17.4]} 27. Nxb8 {[%clk 0:00:11.5]} 27... Rxb8
{[%clk 0:00:18.3]} 28. Bxd5+ {[%clk 0:00:11.3]} 28... Kxd5 {[%clk 0:00:17.9]}
29. Rd1+ {[%clk 0:00:11.8]} 29... Kc6 {[%clk 0:00:17.8]} 30. Rxd6+ {[%clk
0:00:12.3]} 1-0

[Event "*** Titled Tuesday Blitz"]
[Site "Chess.com"]
[Date "2020.05.12"]
[Round "9"]
[White "Trickov"]
[Black "ClassyEl"]
[Result "0-1"]
[WhiteElo "2313"]
[BlackElo "2525"]
[TimeControl "180+1"]
[EndTime "11:42:55 PDT"]
[Termination "ClassyEl won by resignation"]

1. d4 {[%clk 0:03:00.9]} 1... Nf6 {[%clk 0:02:57.9]} 2. Nf3 {[%clk 0:02:58.8]}
2... e6 {[%clk 0:02:57.9]} 3. g3 {[%clk 0:02:58.4]} 3... b6 {[%clk 0:02:56.2]}
4. Bg2 {[%clk 0:02:58.4]} 4... Bb7 {[%clk 0:02:56.9]} 5. O-O {[%clk 0:02:58.9]}
5... Be7 {[%clk 0:02:57.6]} 6. c4 {[%clk 0:02:59.4]} 6... O-O {[%clk 0:02:57.7]}
7. Nc3 {[%clk 0:02:59.8]} 7... Ne4 {[%clk 0:02:58.1]} 8. d5 {[%clk 0:02:59.5]}
8... Nxc3 {[%clk 0:02:53.4]} 9. bxc3 {[%clk 0:02:58.9]} 9... d6 {[%clk
0:02:52.4]} 10. Nd4 {[%clk 0:02:54.6]} 10... e5 {[%clk 0:02:48.8]} 11. Nf5
{[%clk 0:02:53.5]} 11... Bf6 {[%clk 0:02:49.3]} 12. e4 {[%clk 0:02:53.2]} 12...
a5 {[%clk 0:02:47.5]} 13. Qe2 {[%clk 0:02:45.8]} 13... Ba6 {[%clk 0:02:43.1]}
14. h3 {[%clk 0:02:35.1]} 14... g6 {[%clk 0:02:42.1]} 15. Nh6+ {[%clk
0:02:22.7]} 15... Kh8 {[%clk 0:02:40.8]} 16. Ng4 {[%clk 0:02:20.6]} 16... Bg7
{[%clk 0:02:40.1]} 17. Ne3 {[%clk 0:02:16.6]} 17... Nd7 {[%clk 0:02:39.9]} 18.
Bd2 {[%clk 0:02:14.7]} 18... Nc5 {[%clk 0:02:38.2]} 19. Rae1 {[%clk 0:02:07.1]}
19... Qd7 {[%clk 0:02:32.7]} 20. Kh2 {[%clk 0:01:59.6]} 20... Qa4 {[%clk
0:02:30.3]} 21. Bc1 {[%clk 0:01:48.2]} 21... Rae8 {[%clk 0:02:14.7]} 22. Rd1
{[%clk 0:01:37.4]} 22... f5 {[%clk 0:02:14.3]} 23. exf5 {[%clk 0:01:29.6]} 23...
gxf5 {[%clk 0:02:14.1]} 24. Qh5 {[%clk 0:01:05.2]} 24... Qd7 {[%clk 0:01:45.4]}
25. h4 {[%clk 0:01:04.1]} 25... f4 {[%clk 0:01:41]} 26. Bh3 {[%clk 0:01:02.7]}
26... Qf7 {[%clk 0:01:40.6]} 27. Qxf7 {[%clk 0:00:58.2]} 27... Rxf7 {[%clk
0:01:41]} 28. Nf5 {[%clk 0:00:56.7]} 28... Bxc4 {[%clk 0:01:39.2]} 29. Rfe1
{[%clk 0:00:56.1]} 29... fxg3+ {[%clk 0:01:37.1]} 30. fxg3 {[%clk 0:00:55.5]}
30... Bxa2 {[%clk 0:01:33.8]} 31. Nxg7 {[%clk 0:00:53.6]} 31... Kxg7 {[%clk
0:01:33.3]} 32. Bg4 {[%clk 0:00:50.6]} 32... Ref8 {[%clk 0:01:29.6]} 33. h5
{[%clk 0:00:43.1]} 33... Rf2+ {[%clk 0:01:26.3]} 34. Kh3 {[%clk 0:00:42.7]}
34... Bb3 {[%clk 0:01:24]} 35. h6+ {[%clk 0:00:33.6]} 35... Kg8 {[%clk
0:01:07.1]} 36. Rd2 {[%clk 0:00:31.5]} 36... Rxd2 {[%clk 0:01:06.3]} 37. Bxd2
{[%clk 0:00:30.2]} 37... Bxd5 {[%clk 0:01:06.8]} 38. Bg5 {[%clk 0:00:29]} 38...
Ne4 {[%clk 0:01:00.6]} 39. Be3 {[%clk 0:00:19.5]} 39... Nf2+ {[%clk 0:00:55.3]}
40. Kh4 {[%clk 0:00:17.3]} 40... Nxg4 {[%clk 0:00:54.4]} 41. Kxg4 {[%clk
0:00:16]} 41... b5 {[%clk 0:00:52]} 42. Rd1 {[%clk 0:00:12.9]} 42... Bf3+ {[%clk
0:00:51.4]} 0-1

[Event "*** Titled Tuesday Blitz"]
[Site "Chess.com"]
[Date "2020.05.12"]
[Round "9"]
[White "GMJustin"]
[Black "amiralfio"]
[Result "0-1"]
[WhiteElo "2338"]
[BlackElo "2473"]
[TimeControl "180+1"]
[EndTime "11:42:55 PDT"]
[Termination "amiralfio won on time"]

1. d4 {[%clk 0:02:59.9]} 1... f5 {[%clk 0:02:58.5]} 2. Bg5 {[%clk 0:02:46]} 2...
g6 {[%clk 0:02:53.3]} 3. Nc3 {[%clk 0:02:43.5]} 3... Bg7 {[%clk 0:02:52.9]} 4.
e3 {[%clk 0:02:27.9]} 4... Nf6 {[%clk 0:02:49.2]} 5. h4 {[%clk 0:02:06.7]} 5...
d5 {[%clk 0:02:40.4]} 6. h5 {[%clk 0:01:51.7]} 6... Ne4 {[%clk 0:02:28.3]} 7.
Nxe4 {[%clk 0:01:45.3]} 7... fxe4 {[%clk 0:02:23]} 8. hxg6 {[%clk 0:01:35.3]}
8... hxg6 {[%clk 0:02:21]} 9. Rxh8+ {[%clk 0:01:35.4]} 9... Bxh8 {[%clk
0:02:21.9]} 10. Ne2 {[%clk 0:01:17]} 10... Be6 {[%clk 0:02:13.4]} 11. Nf4 {[%clk
0:01:09.9]} 11... Bf7 {[%clk 0:02:11.1]} 12. c4 {[%clk 0:01:06.2]} 12... c6
{[%clk 0:01:55.6]} 13. cxd5 {[%clk 0:01:05.1]} 13... cxd5 {[%clk 0:01:36]} 14.
Bb5+ {[%clk 0:01:04]} 14... Nc6 {[%clk 0:01:35.2]} 15. Bxc6+ {[%clk 0:00:20.6]}
15... bxc6 {[%clk 0:01:36.1]} 16. Qg4 {[%clk 0:00:20.6]} 16... c5 {[%clk
0:01:20.6]} 17. Qh3 {[%clk 0:00:10.5]} 17... Bf6 {[%clk 0:00:36]} 18. Bxf6
{[%clk 0:00:10.5]} 18... exf6 {[%clk 0:00:36.9]} 19. Kf1 {[%clk 0:00:10.8]}
19... cxd4 {[%clk 0:00:31.4]} 20. exd4 {[%clk 0:00:11]} 20... Ke7 {[%clk
0:00:30.3]} 21. Kg1 {[%clk 0:00:10.1]} 21... Rc8 {[%clk 0:00:29.7]} 22. Qa3+
{[%clk 0:00:09.8]} 22... Qd6 {[%clk 0:00:26.7]} 23. Qxd6+ {[%clk 0:00:06.1]}
23... Kxd6 {[%clk 0:00:27.6]} 24. b3 {[%clk 0:00:05.7]} 24... Rc2 {[%clk
0:00:26.7]} 25. a4 {[%clk 0:00:04.7]} 25... g5 {[%clk 0:00:26.5]} 26. Nh3 {[%clk
0:00:04.5]} 26... Be6 {[%clk 0:00:17.2]} 27. Rd1 {[%clk 0:00:02.3]} 27... Rb2
{[%clk 0:00:16.5]} 28. a5 {[%clk 0:00:01.8]} 28... Rxb3 {[%clk 0:00:16.3]} 0-1